Cogmind - Beta 16 @@@ ROGUE MODE // 2025.11.04 @ 16:29:43 Player: Rune Result: Destroyed by Y-45 Defender with Heavy Assault Rifle Performance ------------- Evolutions (1) 500 Regions Visited (2) 400 Robots Destroyed (17) 85 Value Destroyed (401) 401 Prototype IDs (0) 0 Alien Tech Used (0) 0 Bonus (0) 0 TOTAL SCORE: 1386 Bonus ------- None Cogmind --------- Core Integrity 0/400 Matter 246/300 Energy 350/350 System Corruption 0% Temperature Cool (9) Movement Core (250) Ox4 Location -9/Materials Parts ------- > --- POWER (1) -------- (None) > --- PROPULSION (2) --- (None) > --- UTILITY (3) ------ Medium Storage Unit High-capacity Battery > --- WEAPON (3) ------- (None) > --- INVENTORY (10) --- (None) Peak State ------------ > --- POWER ------------ Ion Engine > --- PROPULSION ------- Aluminum Leg Aluminum Leg > --- UTILITY ---------- Small Storage Unit Terrain Scanner > --- WEAPON ----------- Assault Rifle Grenade Launcher > --- INVENTORY -------- Ion Engine EM Pulse Gun Small Laser Welding Torch [Rating: 7] Favorites ----------- Power Ion Engine Engine Ion Engine Propulsion Aluminum Leg Leg Aluminum Leg Utility Terrain Scanner Device Terrain Scanner Storage Small Storage Unit Weapon Light Assault Rifle Energy Gun EM Pulse Gun Ballistic Gun Light Assault Rifle Launcher Grenade Launcher Special Weapon Welding Torch Build | -11 -10 -9 ------- Run | Yrd Mat Mat Slots Evolved 2 | . . 2 Power . | . . . Propulsion . | . . . Utility 1 | . . 1 Weapon 1 | . . 1 Parts Attached 15 | 6 5 4 Power 2 | 1 . 1 Engine 2 | 1 . 1 Core . | . . . Reactor . | . . . Propulsion 3 | 2 1 . Treads . | . . . Leg 3 | 2 1 . Wheel . | . . . Hover . | . . . Flight . | . . . Utility 4 | 1 2 1 Device 1 | . 1 . Storage 3 | 1 1 1 Processor . | . . . Hackware . | . . . Protection . | . . . Artifact . | . . . Weapon 6 | 2 2 2 Energy Gun 1 | 1 . . Energy Cannon . | . . . Ballistic Gun 3 | 1 1 1 Ballistic Cannon . | . . . Launcher 1 | . 1 . Special Weapon 1 | . . 1 Impact Weapon . | . . . Slashing Weapon . | . . . Piercing Weapon . | . . . Special Melee Weapon . | . . . Unidentified Prototypes . | . . . Corrupted Parts 1 | . 1 . System Corruption 1 | . 1 . Parts Lost 11 | . 3 8 Power 2 | . . 2 Propulsion 2 | . 2 . Utility 1 | . . 1 Weapon 6 | . 1 5 Highest Loss Streak 8 | . 3 8 To Critical Strikes . | . . . Average Backups 4 | 1 5 3 Power . | 1 1 . Propulsion . | . . . Utility . | . . . Weapon 2 | . 3 . Tool/Special . | . . . Unused Backups 2 | . 2 . Power . | . . . Propulsion . | . . . Utility . | . . . Weapon 2 | . 2 . Tool/Special . | . . . Average Slot Usage (%) 84 | . 93 60 Engine 13 | . 14 10 Leg 17 | . 24 . Device 11 | . 12 9 Storage 13 | . 14 12 Energy Gun 4 | . 2 9 Ballistic Gun 14 | . 13 18 Launcher 7 | . 10 . Peak Build Rating 7 | 6 7 7 Average Rating 6 | 4 6 6 On Entrance 3 | . 6 5 Avg Prop Armor Cover (%) 10 | . 10 . Naked Turns . | . . . Heaviest Build 24 | 14 24 22 Greatest Support 20 | 20 20 3 Greatest Overweight (x) 7 | 1 6 7 Average Overweight (x) . | . . 6 Largest Inventory Capacity 10 | 8 10 10 Average Capacity 8 | 7 8 10 Most Carried 8 | 5 8 5 Average Carried 4 | 2 5 3 Final Capacity 10 | 8 10 10 Final Carried 4 | 2 4 . Class Distribution -------------------- 81% | Mutant 18% | Skirmisher Dominant Class ---------------- Mutant | -10/Materials Skirmisher | -9/Materials Resources | -11 -10 -9 ----------- Run | Yrd Mat Mat Matter Collected 507 | 123 384 . Remotely . | . . . Salvage Created 393 | . 337 56 Parts 27 | . 22 5 Haulers Intercepted . | . . . Recyclers Shooed 1 | . . 1 Parts Field Recycled . | . . . Retrieved Matter . | . . . Parts Self-Destructed . | . . . Prevented . | . . . Parts Restored . | . . . Kills | -11 -10 -9 ------- Run | Yrd Mat Mat Combat Hostiles Destroyed 11 | . 9 2 Guns 5 | . 3 2 AOE 6 | . 6 . Classes Destroyed 5 | . 5 . Builder 2 | . 2 . Recycler 1 | . 1 . Watcher 3 | . 3 . Swarmer 4 | . 3 1 Grunt 7 | . 6 1 Best Kill Streak 4 | . 4 1 Combat Bots Only 3 | . 3 1 Max Kills in Single Turn 4 | . 4 1 Gunslinging . | . . . Exploded 3 | . 3 . Melee . | . . . Uniques/NPCs Destroyed . | . . . Combat | -11 -10 -9 -------- Run | Yrd Mat Mat Hostile Shots Fired 184 | . 39 145 Missed 58 | . 10 48 Hits 126 | . 29 97 Projectile 126 | . 29 97 Damage Taken 1466 | . 521 945 Core 552 | . 142 410 Absorbed by Shields . | . . . Core Remaining (%) 71 | 100 43 . Volleys Fired 38 | . 28 10 Largest 3 | . 2 3 Hottest 83 | . 60 83 Shots Fired 68 | . 50 18 Gun 52 | . 34 18 Cannon . | . . . Launcher 16 | . 16 . Special . | . . . Kinetic 41 | . 28 13 Thermal . | . . . Explosive 16 | . 16 . Electromagnetic 11 | . 6 5 Robot Hit Streak 5 | . 5 2 Robot Miss Streak 4 | . 3 4 Penetration Max . | . . . Secondary Targets . | . . . Shots Hit Robots 16 | . 12 4 Core Hits 31 | . 28 3 Critical Kills . | . . . Critical Parts Destroyed . | . . . Critical Strikes . | . . . Melee Attacks . | . . . Impact . | . . . Slashing . | . . . Piercing . | . . . Sneak Attacks . | . . . Combat Hostiles . | . . . Follow-up Attacks . | . . . Damage Inflicted 890 | . 836 54 Guns 217 | . 163 54 Cannons . | . . . Explosions 667 | . 667 . Melee . | . . . Ramming 6 | . 6 . Kinetic 140 | . 86 54 Thermal . | . . . Explosive 667 | . 667 . Electromagnetic 77 | . 77 . Impact . | . . . Slashing . | . . . Piercing . | . . . Highest Corruption 1 | . 1 . Average Corruption 1 | . 1 . Corruption Purged . | . . . Corruption Blocked . | . . . Effects 1 | . 1 . Parts Rejected 1 | . 1 . Overload Shots . | . . . Overflow Damage 8 | . 8 . Projectiles . | . . . Explosions 8 | . 8 . Melee . | . . . Knockbacks . | . . . Impact . | . . . Kinetic . | . . . Secondary . | . . . Self-Inflicted Damage 102 | . 102 . Shots 5 | . 5 . Rammed 2 | . 1 1 Targets Rammed 3 | . 2 1 Kicked 1 | . 1 . Crushed . | . . . Highest Temperature 82 | . 82 45 Average Temperature 24 | . 25 19 Received Heat Transfer 432 | . 237 195 Siege Activations . | . . . Martial Activations . | . . . Shielding Activations . | . . . Robots Disrupted . | . . . Combat Hostiles . | . . . Robots Corrupted . | . . . Combat Hostiles . | . . . Parts Fried . | . . . Impact Corruptions . | . . . Robots Melted . | . . . Combat Hostiles . | . . . Parts Melted . | . . . Heat Transferred . | . . . Parts Sabotaged . | . . . Parts Stolen . | . . . Parts Stripped . | . . . Power Chain Reactions . | . . . Alert | -11 -10 -9 ------- Run | Yrd Mat Mat Maximum Alert Level . | . . . Low Security (%) 100 | 100 100 100 Level 1 . | . . . Level 2 . | . . . Level 3 . | . . . Level 4 . | . . . Level 5 . | . . . High Security . | . . . Max Security . | . . . Peak Influence 148 | . 148 29 Initial 29 | . . 29 Average 62 | . 89 5 Influence Increases 439 | . 384 55 Destroy 0b10 Robot/C 220 | . 180 40 Destroy 0b10 Robot/NC 30 | . 30 . Destroy Leader 46 | . 46 . Successful Hack 4 | . 4 . Disable Machine 30 | . 30 . Destroy Structure 94 | . 94 . Lose Combat Pursuer 15 | . . 15 Influence Decreases 429 | . 312 117 Entered New Map 43 | . . 43 Time Decay 321 | . 282 39 Lost Part 65 | . 30 35 Squads Dispatched . | . . . Investigation . | . . . Extermination . | . . . Reinforcement . | . . . Assault . | . . . Garrison . | . . . Intercept . | . . . Searches Triggered . | . . . Construction Impeded . | . . . Haulers Reinforced . | . . . Active Scanning Responses . | . . . Cargo Convoy Interrupts . | . . . Stealth | -11 -10 -9 --------- Run | Yrd Mat Mat Distress Signals . | . . . Communications Jammed . | . . . Distress Signals . | . . . Times Spotted 27 | . 15 12 Peak Tracking Total 9 | . 3 9 Tactical Retreats 1 | . . 1 Traps | -11 -10 -9 ------- Run | Yrd Mat Mat Traps Triggered 1 | . 1 . Indirectly . | . . . Trap Hack Attempts . | . . . Triggered . | . . . Disarmed . | . . . Reprogrammed . | . . . Reused . | . . . Traps Extracted . | . . . Installed . | . . . Triggered . | . . . Machines | -11 -10 -9 ---------- Run | Yrd Mat Mat Machines Disabled 2 | . 2 . Max in Single Turn 1 | . 1 . Machines Repaired . | . . . Machines Dismantled . | . . . Machines Sabotaged . | . . . Overloaded Fab Kills . | . . . Hacking | -11 -10 -9 --------- Run | Yrd Mat Mat Machines Accessed 6 | . 4 2 Terminals 5 | . 3 2 Fabricators . | . . . Repair Stations 1 | . 1 . Recycling Units . | . . . Scanalyzers . | . . . Garrison Access . | . . . Total Hacks 12 | . 10 2 Successful 7 | . 6 1 Failed 5 | . 4 1 Catastrophic . | . . . Database Lockouts . | . . . Manual . | . . . Terminals 10 | . 8 2 Fabricators . | . . . Repair Stations 2 | . 2 . Recycling Units . | . . . Scanalyzers . | . . . Garrison Access . | . . . Terminal Hacks 6 | . 5 1 Record 5 | . 5 . Hauler Manifests 1 | . . 1 Fabricator Hacks . | . . . Repair Station Hacks 1 | . 1 . Scan Component 1 | . 1 . Recycling Unit Hacks . | . . . Scanalyzer . | . . . Garrison Access Hacks . | . . . Unauthorized Hacks . | . . . Terminals . | . . . Fabricators . | . . . Repair Stations . | . . . Recycling Units . | . . . Scanalyzers . | . . . Garrison Access . | . . . Data Cores Recovered . | . . . Used . | . . . Hacking Detections 2 | . 2 . Full Trace Events . | . . . Feedback Events . | . . . Feedback Blocked . | . . . Robot Schematics Acquired . | . . . Robots Built . | . . . Authchips . | . . . Time . | . . . Total Robot Build Rating . | . . . Part Schematics Acquired . | . . . Parts Built . | . . . Authchips . | . . . Time . | . . . Total Part Build Rating . | . . . Part Studies Acquired . | . . . Parts Repaired . | . . . Time . | . . . Parts Recycled . | . . . Recycled Matter . | . . . Retrieved Matter . | . . . Retrieved Components . | . . . Parts Scanalyzed . | . . . Part Schematics Acquired . | . . . Parts Damaged . | . . . Bothacking | -11 -10 -9 ------------ Run | Yrd Mat Mat Used RIF Installer . | . . . Robots Hacked . | . . . Non-combat . | . . . Combat . | . . . Robot Hacks Applied . | . . . Relay Couplers Released . | . . . Fabnet Peak Effective % . | . . . Robots Rewired . | . . . Allies Hacked . | . . . Hacks Repelled . | . . . Allies | -11 -10 -9 -------- Run | Yrd Mat Mat Total Allies . | . . . Largest Group . | . . . Highest-Rated Group . | . . . Highest-Rated Ally . | . . . Total Orders . | . . . Ally Attacks . | . . . Total Damage . | . . . Kills . | . . . Allies Corrupted . | . . . Allies Melted . | . . . Intel | -11 -10 -9 ------- Run | Yrd Mat Mat Active Infowar (turns) 807 | . 598 209 Terrain 807 | . 598 209 Robot Analysis Total . | . . . Derelict Logs Recovered . | . . . Drone Launches . | . . . Drone Recoveries . | . . . Exploration | -11 -10 -9 ------------- Run | Yrd Mat Mat Turns Passed 969 | 67 666 236 Spaces Moved 525 | 55 417 53 Core 99 | 20 26 53 Treads . | . . . Legs 426 | 35 391 . Wheels . | . . . Hover . | . . . Flight . | . . . Fastest Speed 50 | 50 120 250 Average Speed 156 | 97 135 383 Slowest Speed 400 | 190 350 400 Overloaded Moves . | . . . Propulsion Burnouts . | . . . Robots Hopped . | . . . Potential Cave-ins 4 | . 4 . Cave-ins Triggered . | . . . Exploration Rate (%) 25 | 3 66 7 Regions Visited 2 Branch Regions . Pre-discovered Areas . | . . . Known Exits Taken . | . . . Unknown Exits Taken 2 | 1 1 . Scrap Searched . | . . . Spaces Dug 6 | . 6 . Terrain Destroyed 98 | . 98 . Melee . | . . . Projectile . | . . . AOE 98 | . 98 . Terrain Rammed . | . . . Walls Destroyed . | . . . Machines Disabled . | . . . Actions | -11 -10 -9 --------- Run | Yrd Mat Mat Total 614 | 68 476 70 Wait 4 | . 4 . Move 523 | 54 416 53 Hop . | . . . Pick Up 20 | 8 11 1 Fast Attach . | . . . Attach 19 | 6 8 5 Detach 3 | . 3 . Swap . | . . . Drop 4 | . 4 . Fire 38 | . 28 10 Melee . | . . . Ram 2 | . 1 1 Kick 1 | . 1 . Crush . | . . . Escape Stasis . | . . . Rewire . | . . . Trap . | . . . Miscellaneous . | . . . Route ------- -11/Scrapyard -10/Materials (discovered 2 exits: *Mat / [*Min]) -9/Materials History --------- Turn | Location | Event 42 | -11/Scrapyard | Discovered new exit (range 15) 68 | -11/Scrapyard | Entered Materials 314 | -10/Materials | Build established: Mutant 444 | -10/Materials | Discovered new exit (range 12) 629 | -10/Materials | Core integrity fell below 50% 661 | -10/Materials | Lost 3 parts (2n1w) 693 | -10/Materials | Discovered new exit (range 12) 734 | -10/Materials | Entered another Materials area 734 | -9/Materials | Evolved 2 slots: Utility x1, Weapon x1 961 | -9/Materials | Core integrity fell below 50% 966 | -9/Materials | Core integrity fell below 20% 970 | -9/Materials | Destroyed by Y-45 Defender with Heavy Assault Rifle Last Messages --------------- Lgt. Assault Rifle destroyed. C-30 ARC bursts open, deploying its payload. S-10 Pest unfolds itself. Ion Engine destroyed. EM Pulse Gun destroyed. Terrain Scanner destroyed. K-01 Serf destroyed. Shotgun destroyed. S-10 Pest destroyed. R-06 Scavenger collects Flight Unit. K-01 Serf collects debris. R-06 Scavenger collects Lgt. Ion Engine. Welding Torch destroyed. K-01 Serf collects debris. Ion Engine destroyed. G-34 Mercenary destroyed. K-01 Serf collects debris. Assault Rifle destroyed. Slammed into R-06 Scavenger. K-01 Serf collects debris. Map ----- +----------------------------------------------------+ | | | | | | | | | | | | | | | | | | | | | | | | | ????????????###########??????#???????????????????? | | ???????##???# #??????????????????????????? | | ????????#??## " #??????????????????????????? | | ??????#?????# T #??#???????????????????????? | | ????????????# " """ ##????#????????????????????? | | ????????????# """ ##????????"????????????????? | | #???????#?#?# """ #?????# ???????????????????? | | #?????##???## #??????????????????????????? | | #?????#???#?# #??????????? ??????????????? | | ????#############/#####????######+######?????????? | | ??#?# ######## ????????? | | ????# =%!= g ????????? | | ???## #### %! ????????? | | ???#####+###########??# @ * ##+##??????????????? | | ???#?# #????#???## #?? ???????????????? | | ?????# T #??? ????# k #??????????????????? | | ?????# #????????# s #??????????????????? | | ?????# #????????+% #??????????????????? | | ?????# #??????" #=%s ##??????????????????? | | ??#??# #? ?? ?? # r #???????????????????? | | ?#???########????#?#?# #???????????????????? | | ??????????????#????#?# s ???????????????????? | | ??????????????#??#???#ss ######??????????????????? | | ?? ????#??????#?#????# Y#????#??????????????????? | | ????????????#????????#% #???????????????????????? | | ????????????? ??????? ????????????????????????? | | ????????????????????? ????????????????????????? | | ??? ?? ?????????????? ????????????????????????? | | ????????????????????? ????????????????????????? | | ??????????????????????? ????????????????????????? | | ?????????????????????????????????????????????????? | | ?????????????????????????????????????????????????? | | ?????????????????????????????????????????????????? | | ?????????????????????????????????????????????????? | | ?????????????????????????????????????????????????? | | ?????????????????????????????????????????????????? | | ?????????????????????????????????????????????????? | | ?????????????????????????????????????????????????? | +----------------------------------------------------+ Best States ------------- Heat Dissipation 28 Energy Generation 10 Energy Capacity 500 Matter Stores 300 Matter Capacity 300 Sight Range 16 Terrain Scan Range 14 Terrain Scan Density 10 Evasion (%) 55 Item Schematics ----------------- None Robot Schematics ------------------ None Fabricated ------------ Nothing Repaired ---------- Nothing Studied --------- None Alien Tech Used ----------------- None Achievements -------------- A Problem For Future Me Challenges ------------ None Game ------ Seed ThiefGhostCartridge Manual? 0 Play Time 00:15:47 Cumulative 11.2 hours Start 2025.11.04 @ 16:15:16 End 2025.11.04 @ 16:29:43 Sessions 1 Manual Loads 0 Difficulty Rogue Special Mode None Game No. 39 Rogue 39 Adventurer 0 Explorer 0 Win Type - Total 0 Types 0/0/0/0/0/0/0/0/0/0 Lore% 1 Gallery% 11 Achievement% 7 Wizard Run 0 Options --------- Layout 1 ASCII 0 Keyboard 1 Movement Numpad Keybinds 0 Fullscreen 1 Font 32/SmallcapsGlow Map View 50x35 Zoom Use 0% Tactical HUD 0 Map Filters NONE Filters NONE Steam 1 RUN: 80a28004-aa2d-4f33-84d2-91dbf2c9f1c2